[Event "Fast Chess"]
[Site "ChessKid.com"]
[Date "2020.04.19"]
[Round "3"]
[White "Li, Patrick"]
[Black "Sasse, Gabriel"]
[Result "0-1"]
[ECO "C50"]
[WhiteElo "1091"]
[BlackElo "1263"]
[PlyCount "32"]
[EventDate "2020.??.??"]
[TimeControl "300"]
[WhiteClock "0:04:31"]
[BlackClock "0:03:41"]

1. e4 {[%emt 0:00:01]} e5 {[%emt 0:00:00]} 2. Nf3 {[%emt 0:00:02]} Nc6 {
[%emt 0:00:01]} 3. Nc3 {[%emt 0:00:03]} Bc5 {[%emt 0:00:00]} 4. Bc4 {[%emt 0:
00:03]} h6 {[%emt 0:00:01]} 5. O-O {[%emt 0:00:02]} Nf6 {[%emt 0:00:01]} 6. h3
{[%emt 0:00:03]} O-O {[%emt 0:00:00]} 7. d3 {[%emt 0:00:09]} Ne8 {[%emt 0:00:
00]} 8. Bb5 {[%emt 0:00:06]} d6 {[%emt 0:00:05]} 9. Bxc6 {[%emt 0:00:03]} bxc6
{[%emt 0:00:02]} 10. Re1 {[%emt 0:00:05]} Bd4 {[%emt 0:00:02]} 11. Be3 {
[%emt 0:00:06]} Bxe3 {[%emt 0:00:03]} 12. Rxe3 {[%emt 0:00:03]} Qf6 {[%emt 0:
00:04]} 13. Qe2 {[%emt 0:00:16]} Qg6 {[%emt 0:00:03]} 14. Qd2 {[%emt 0:00:12]}
Bxh3 {[%emt 0:00:02]} 15. Nh4 {[%emt 0:00:02]} Qg5 {[%emt 0:00:02]} 16. Rxh3 {
[%emt 0:00:05]} Qxd2 {[%emt 0:00:03] LimeFarActor won by resignation} 0-1

[Event "Fast Chess"]
[Site "ChessKid.com"]
[Date "2020.04.19"]
[Round "3"]
[White "Georgiev, Maximilian"]
[Black "Li, Tobias"]
[Result "1-0"]
[ECO "C50"]
[WhiteElo "1365"]
[BlackElo "1309"]
[PlyCount "33"]
[EventDate "2020.??.??"]
[TimeControl "300"]
[WhiteClock "0:03:56"]
[BlackClock "0:04:21"]

1. e4 {[%emt 0:00:01]} e5 {[%emt 0:00:02]} 2. Nf3 {[%emt 0:00:01]} Nc6 {
[%emt 0:00:01]} 3. Bc4 {[%emt 0:00:01]} Bc5 {[%emt 0:00:03]} 4. O-O {[%emt 0:
00:02]} Nf6 {[%emt 0:00:01]} 5. Nc3 {[%emt 0:00:01]} O-O {[%emt 0:00:01]} 6. d3
{[%emt 0:00:01]} d6 {[%emt 0:00:01]} 7. Bg5 {[%emt 0:00:02]} h6 {[%emt 0:00:03]
} 8. Bh4 {[%emt 0:00:01]} Bg4 {[%emt 0:00:01]} 9. a4 {[%emt 0:00:08]} a6 {
[%emt 0:00:10]} 10. b3 {[%emt 0:00:02]} b6 {[%emt 0:00:12]} 11. Bd5 {[%emt 0:
00:03]} Nd4 {[%emt 0:00:10]} 12. Bxa8 {[%emt 0:00:04]} Nxf3+ {[%emt 0:00:05]}
13. gxf3 {[%emt 0:00:02]} Bh5 {[%emt 0:00:03]} 14. Bd5 {[%emt 0:00:05]} g5 {
[%emt 0:00:04]} 15. Bg3 {[%emt 0:00:04]} Nxd5 {[%emt 0:00:02]} 16. Nxd5 {
[%emt 0:00:02]} Qd7 {[%emt 0:00:06]} 17. Nf6+ {[%emt 0:00:01] TallSnazzyBall
won by resignation} 1-0

[Event "Fast Chess"]
[Site "ChessKid.com"]
[Date "2020.04.02"]
[Round "1"]
[White "Koller, Philipp"]
[Black "Jankovic, Tiana"]
[Result "1/2-1/2"]
[ECO "C23"]
[WhiteElo "847"]
[BlackElo "896"]
[PlyCount "96"]
[EventDate "2020.??.??"]
[TimeControl "900+100"]
[WhiteClock "0:06:21"]
[BlackClock "0:03:16"]

1. e4 {[%emt 0:01:54]} e5 {[%emt 0:01:47]} 2. Bc4 {[%emt 0:01:39]} Bc5 {
[%emt 0:01:42]} 3. Bb5 {[%emt 0:01:33]} Nf6 {[%emt 0:02:00]} 4. Ba6 {[%emt 0:
01:30]} bxa6 {[%emt 0:01:51]} 5. d3 {[%emt 0:01:51]} Nc6 {[%emt 0:01:42]} 6. a4
{[%emt 0:01:51]} Nb4 {[%emt 0:01:47]} 7. b3 {[%emt 0:01:43]} Ng4 {[%emt 0:01:
54]} 8. f3 {[%emt 0:02:01]} Bf2+ {[%emt 0:01:41]} 9. Ke2 {[%emt 0:02:07]} Bxg1
{[%emt 0:01:55]} 10. Rxg1 {[%emt 0:01:46]} Nxh2 {[%emt 0:02:25]} 11. g4 {
[%emt 0:02:09]} d6 {[%emt 0:02:17]} 12. Rh1 {[%emt 0:01:36]} Nxg4 {[%emt 0:01:
46]} 13. fxg4 {[%emt 0:01:34]} Bxg4+ {[%emt 0:02:03]} 14. Ke1 {[%emt 0:01:40]}
Bxd1 {[%emt 0:02:06]} 15. Kxd1 {[%emt 0:01:40]} c6 {[%emt 0:01:42]} 16. c3 {
[%emt 0:01:34]} d5 {[%emt 0:01:36]} 17. cxb4 {[%emt 0:01:34]} dxe4 {[%emt 0:02:
05]} 18. Rh3 {[%emt 0:02:25]} Qxd3+ {[%emt 0:01:52]} 19. Rxd3 {[%emt 0:01:44]}
exd3 {[%emt 0:01:37]} 20. Nc3 {[%emt 0:01:59]} e4 {[%emt 0:01:30]} 21. Nxe4 {
[%emt 0:01:41]} Rd8 {[%emt 0:01:46]} 22. b5 {[%emt 0:01:56]} axb5 {[%emt 0:01:
44]} 23. axb5 {[%emt 0:01:36]} cxb5 {[%emt 0:01:38]} 24. Rxa7 {[%emt 0:01:37]}
f5 {[%emt 0:01:58]} 25. Nc5 {[%emt 0:01:59]} g6 {[%emt 0:01:39]} 26. Bg5 {
[%emt 0:01:58]} Rd5 {[%emt 0:01:53]} 27. Ra8+ {[%emt 0:01:51]} Kf7 {[%emt 0:01:
44]} 28. Rxh8 {[%emt 0:02:13]} Rxc5 {[%emt 0:01:39]} 29. Rxh7+ {[%emt 0:01:36]}
Ke6 {[%emt 0:01:42]} 30. b4 {[%emt 0:01:48]} Rc4 {[%emt 0:01:40]} 31. Kd2 {
[%emt 0:02:39]} Rxb4 {[%emt 0:01:54]} 32. Kxd3 {[%emt 0:01:35]} Rb3+ {[%emt 0:
01:36]} 33. Kc2 {[%emt 0:01:53]} Rg3 {[%emt 0:01:56]} 34. Bh4 {[%emt 0:02:10]}
Rg4 {[%emt 0:01:38]} 35. Rh6 {[%emt 0:01:58]} b4 {[%emt 0:01:46]} 36. Kb3 {
[%emt 0:01:54]} Kd5 {[%emt 0:01:54]} 37. Be7 {[%emt 0:02:12]} f4 {[%emt 0:02:
54]} 38. Rh1 {[%emt 0:04:06]} f3 {[%emt 0:01:44]} 39. Rf1 {[%emt 0:01:35]} Rg3
{[%emt 0:01:49]} 40. Kxb4 {[%emt 0:02:16]} g5 {[%emt 0:01:43]} 41. Bxg5 {
[%emt 0:02:21]} Rxg5 {[%emt 0:03:03]} 42. Rxf3 {[%emt 0:01:36]} Re5 {[%emt 0:
01:41]} 43. Rd3+ {[%emt 0:02:04]} Ke4 {[%emt 0:01:37]} 44. Rd1 {[%emt 0:01:54]}
Rd5 {[%emt 0:01:48]} 45. Kc4 {[%emt 0:01:57]} Rf5 {[%emt 0:02:00]} 46. Re1+ {
[%emt 0:02:04]} Kf4 {[%emt 0:01:36]} 47. Rf1+ {[%emt 0:01:41]} Kg4 {[%emt 0:01:
43]} 48. Rxf5 {[%emt 0:01:46]} Kxf5 {[%emt 0:01:39] Game drawn - insufficient
material} 1/2-1/2

[Event "Fast Chess"]
[Site "ChessKid.com"]
[Date "2020.04.02"]
[Round "1"]
[White "Fikisz, Moritz"]
[Black "Knauss, Ben"]
[Result "1/2-1/2"]
[ECO "D00"]
[WhiteElo "838"]
[BlackElo "777"]
[PlyCount "81"]
[EventDate "2020.??.??"]
[TimeControl "900+100"]
[WhiteClock "0:17:15"]
[BlackClock "0:17:27"]

1. d4 {[%emt 0:01:39]} d5 {[%emt 0:01:33]} 2. e3 {[%emt 0:01:33]} e6 {[%emt 0:
01:35]} 3. c3 {[%emt 0:01:34]} c6 {[%emt 0:01:37]} 4. a3 {[%emt 0:01:38]} b6 {
[%emt 0:01:37]} 5. g3 {[%emt 0:01:34]} c5 {[%emt 0:01:35]} 6. dxc5 {[%emt 0:01:
46]} bxc5 {[%emt 0:01:33]} 7. a4 {[%emt 0:01:35]} e5 {[%emt 0:01:33]} 8. c4 {
[%emt 0:01:36]} dxc4 {[%emt 0:01:35]} 9. a5 {[%emt 0:01:35]} c3 {[%emt 0:01:45]
} 10. bxc3 {[%emt 0:01:43]} c4 {[%emt 0:01:45]} 11. Qxd8+ {[%emt 0:01:37]} Kxd8
{[%emt 0:01:41]} 12. g4 {[%emt 0:01:38]} Bb4 {[%emt 0:01:50]} 13. cxb4 {
[%emt 0:01:34]} Bxg4 {[%emt 0:01:46]} 14. Kd2 {[%emt 0:01:47]} Nf6 {[%emt 0:01:
40]} 15. h3 {[%emt 0:01:34]} Ne4+ {[%emt 0:01:33]} 16. Ke1 {[%emt 0:01:41]} Re8
{[%emt 0:01:42]} 17. hxg4 {[%emt 0:01:34]} Re7 {[%emt 0:01:34]} 18. Rxh7 {
[%emt 0:01:38]} Rd7 {[%emt 0:01:35]} 19. Rxg7 {[%emt 0:01:33]} Nd2 {[%emt 0:01:
48]} 20. Bxd2 {[%emt 0:01:42]} Rxd2 {[%emt 0:01:35]} 21. Nxd2 {[%emt 0:01:39]}
Nc6 {[%emt 0:01:36]} 22. Nxc4 {[%emt 0:01:37]} Nd4 {[%emt 0:01:32]} 23. exd4 {
[%emt 0:01:34]} exd4 {[%emt 0:01:36]} 24. Rxf7 {[%emt 0:01:35]} d3 {[%emt 0:01:
33]} 25. Bxd3 {[%emt 0:01:39]} Rc8 {[%emt 0:01:37]} 26. b5 {[%emt 0:01:35]}
Rxc4 {[%emt 0:01:34]} 27. Bxc4 {[%emt 0:01:35]} a6 {[%emt 0:01:41]} 28. bxa6 {
[%emt 0:01:34]} Kc8 {[%emt 0:01:36]} 29. Rf8+ {[%emt 0:01:33]} Kd7 {[%emt 0:01:
35]} 30. Rf7+ {[%emt 0:01:35]} Kd6 {[%emt 0:01:33]} 31. Be6 {[%emt 0:01:36]}
Kc5 {[%emt 0:01:33]} 32. Bc4 {[%emt 0:01:30]} Kxc4 {[%emt 0:01:34]} 33. Rc7+ {
[%emt 0:01:32]} Kd3 {[%emt 0:01:33]} 34. Kf1 {[%emt 0:01:38]} Ke4 {[%emt 0:01:
35]} 35. Ra4+ {[%emt 0:01:36]} Kd3 {[%emt 0:01:41]} 36. Rd7+ {[%emt 0:01:35]}
Kc2 {[%emt 0:01:35]} 37. Rc4+ {[%emt 0:01:38]} Kb1 {[%emt 0:01:34]} 38. Rb4+ {
[%emt 0:01:33]} Ka1 {[%emt 0:01:33]} 39. Rd1+ {[%emt 0:01:37]} Ka2 {[%emt 0:01:
33]} 40. Rd2+ {[%emt 0:01:36]} Ka1 {[%emt 0:01:33]} 41. Ne2 {[%emt 0:01:37]
Game drawn by stalemate} 1/2-1/2

[Event "Fast Chess"]
[Site "ChessKid.com"]
[Date "2020.04.02"]
[Round "2"]
[White "Jankovic, Tiana"]
[Black "Schwarz, Sophie"]
[Result "1-0"]
[ECO "A40"]
[WhiteElo "943"]
[BlackElo "611"]
[PlyCount "59"]
[EventDate "2020.??.??"]
[TimeControl "900+100"]
[WhiteClock "0:11:07"]
[BlackClock "0:11:58"]

1. d4 {[%emt 0:01:38]} Nc6 {[%emt 0:01:51]} 2. Bf4 {[%emt 0:01:39]} Nxd4 {
[%emt 0:01:40]} 3. Qxd4 {[%emt 0:02:12]} d5 {[%emt 0:01:50]} 4. Qd1 {[%emt 0:
01:47]} Bd7 {[%emt 0:01:56]} 5. f3 {[%emt 0:02:02]} Nf6 {[%emt 0:01:50]} 6. e4
{[%emt 0:01:46]} dxe4 {[%emt 0:02:36]} 7. fxe4 {[%emt 0:01:36]} Nxe4 {[%emt 0:
01:37]} 8. Nf3 {[%emt 0:01:47]} Nf2 {[%emt 0:01:48]} 9. Kxf2 {[%emt 0:01:51]}
Ba4 {[%emt 0:01:45]} 10. Bd2 {[%emt 0:01:48]} Bxc2 {[%emt 0:01:36]} 11. Qxc2 {
[%emt 0:01:36]} Qxd2+ {[%emt 0:01:36]} 12. Qxd2 {[%emt 0:01:38]} c5 {[%emt 0:
01:40]} 13. a3 {[%emt 0:01:42]} c4 {[%emt 0:01:56]} 14. b4 {[%emt 0:01:38]} c3
{[%emt 0:01:46]} 15. Qxc3 {[%emt 0:01:37]} e6 {[%emt 0:01:40]} 16. b5 {[%emt 0:
01:43]} Bxa3 {[%emt 0:01:41]} 17. Qxa3 {[%emt 0:01:40]} a6 {[%emt 0:01:43]} 18.
bxa6 {[%emt 0:01:40]} Rxa6 {[%emt 0:01:52]} 19. Qxa6 {[%emt 0:01:37]} bxa6 {
[%emt 0:01:37]} 20. Rxa6 {[%emt 0:01:38]} h5 {[%emt 0:02:06]} 21. Ra8+ {
[%emt 0:01:38]} Kd7 {[%emt 0:01:44]} 22. Rxh8 {[%emt 0:01:54]} h4 {[%emt 0:01:
49]} 23. Nxh4 {[%emt 0:01:40]} g5 {[%emt 0:01:39]} 24. Ng6 {[%emt 0:01:40]}
fxg6 {[%emt 0:01:40]} 25. g3 {[%emt 0:01:51]} g4 {[%emt 0:01:33]} 26. h4 {
[%emt 0:01:39]} e5 {[%emt 0:02:14]} 27. Bb5+ {[%emt 0:01:36]} Kd6 {[%emt 0:01:
42]} 28. Rd1+ {[%emt 0:02:06]} Kc5 {[%emt 0:01:53]} 29. Rc8+ {[%emt 0:02:09]}
Kxb5 {[%emt 0:01:55]} 30. Rdc1 {[%emt 0:02:16] PaleHulkingOak won by
resignation} 1-0

[Event "Fast Chess"]
[Site "ChessKid.com"]
[Date "2020.03.22"]
[Round "1"]
[White "Horvath, Alexander"]
[Black "Sasse, Gabriel"]
[Result "1-0"]
[ECO "C55"]
[WhiteElo "1413"]
[BlackElo "1158"]
[PlyCount "41"]
[EventDate "2020.??.??"]
[TimeControl "300+10"]
[WhiteClock "0:03:37"]
[BlackClock "0:03:52"]

1. e4 {[%emt 0:00:10]} e5 {[%emt 0:00:12]} 2. Nf3 {[%emt 0:00:12]} Nc6 {
[%emt 0:00:11]} 3. Nc3 {[%emt 0:00:11]} Nf6 {[%emt 0:00:11]} 4. Bc4 {[%emt 0:
00:11]} Bc5 {[%emt 0:00:11]} 5. Ng5 {[%emt 0:00:13]} O-O {[%emt 0:00:13]} 6.
Bxf7+ {[%emt 0:00:13]} Rxf7 {[%emt 0:00:13]} 7. Nxf7 {[%emt 0:00:14]} Kxf7 {
[%emt 0:00:10]} 8. Nd5 {[%emt 0:00:17]} Nxd5 {[%emt 0:00:14]} 9. exd5 {[%emt 0:
00:11]} Qf6 {[%emt 0:00:14]} 10. O-O {[%emt 0:00:17]} Ne7 {[%emt 0:00:21]} 11.
Qh5+ {[%emt 0:00:17]} Ng6 {[%emt 0:00:15]} 12. Qxh7 {[%emt 0:00:17]} e4 {
[%emt 0:00:19]} 13. d3 {[%emt 0:00:20]} exd3 {[%emt 0:00:12]} 14. cxd3 {
[%emt 0:00:11]} b6 {[%emt 0:00:17]} 15. Be3 {[%emt 0:00:11]} Bxe3 {[%emt 0:00:
20]} 16. fxe3 {[%emt 0:00:11]} Qxf1+ {[%emt 0:00:13]} 17. Rxf1+ {[%emt 0:00:12]
} Ke8 {[%emt 0:00:15]} 18. Qxg6+ {[%emt 0:00:13]} Ke7 {[%emt 0:00:12]} 19. Rf7+
{[%emt 0:00:14]} Ke8 {[%emt 0:00:12]} 20. Qxg7 {[%emt 0:00:14]} Ba6 {[%emt 0:
00:20]} 21. Rf8# {[%emt 0:00:11] KeenOrangeTeeth won by checkmate} 1-0

[Event "Fast Chess"]
[Site "ChessKid.com"]
[Date "2020.03.22"]
[Round "1"]
[White "Georgiev, Maximilian"]
[Black "Kober, Stefan"]
[Result "0-1"]
[ECO "C77"]
[WhiteElo "1034"]
[BlackElo "1336"]
[PlyCount "84"]
[EventDate "2020.??.??"]
[TimeControl "300+10"]
[WhiteClock "0:01:56"]

1. e4 {[%emt 0:00:13]} e5 {[%emt 0:00:12]} 2. Nf3 {[%emt 0:00:14]} Nc6 {
[%emt 0:00:10]} 3. Bb5 {[%emt 0:00:13]} a6 {[%emt 0:00:11]} 4. Ba4 {[%emt 0:00:
10]} Nf6 {[%emt 0:00:13]} 5. Nc3 {[%emt 0:00:11]} Bc5 {[%emt 0:00:17]} 6. h3 {
[%emt 0:00:15]} d6 {[%emt 0:00:10]} 7. O-O {[%emt 0:00:13]} Bd7 {[%emt 0:00:14]
} 8. d3 {[%emt 0:00:12]} Nd4 {[%emt 0:00:17]} 9. Bxd7+ {[%emt 0:00:30]} Qxd7 {
[%emt 0:00:12]} 10. Bg5 {[%emt 0:00:20]} Qe6 {[%emt 0:00:21]} 11. Bxf6 {
[%emt 0:00:21]} Qxf6 {[%emt 0:00:11]} 12. Nd5 {[%emt 0:00:13]} Qd8 {[%emt 0:00:
15]} 13. c3 {[%emt 0:00:32]} Nxf3+ {[%emt 0:00:11]} 14. Qxf3 {[%emt 0:00:12]}
O-O {[%emt 0:00:13]} 15. b4 {[%emt 0:00:25]} Ba7 {[%emt 0:00:12]} 16. Qf5 {
[%emt 0:00:37]} c6 {[%emt 0:00:17]} 17. Ne3 {[%emt 0:00:19]} Qc8 {[%emt 0:00:
13]} 18. Qg5 {[%emt 0:00:21]} Bxe3 {[%emt 0:00:17]} 19. fxe3 {[%emt 0:00:13]}
Qe6 {[%emt 0:00:14]} 20. Rf3 {[%emt 0:00:25]} h6 {[%emt 0:00:21]} 21. Qh4 {
[%emt 0:00:18]} b5 {[%emt 0:00:17]} 22. a3 {[%emt 0:00:16]} a5 {[%emt 0:00:11]}
23. bxa5 {[%emt 0:00:15]} Rxa5 {[%emt 0:00:10]} 24. Qf2 {[%emt 0:00:28]} Qb3 {
[%emt 0:00:16]} 25. Rf1 {[%emt 0:00:17]} Ra7 {[%emt 0:00:14]} 26. h4 {[%emt 0:
00:17]} Qxa3 {[%emt 0:00:13]} 27. d4 {[%emt 0:00:34]} exd4 {[%emt 0:00:14]} 28.
exd4 {[%emt 0:00:16]} c5 {[%emt 0:00:16]} 29. c4 {[%emt 0:00:12]} Qb4 {[%emt 0:
00:15]} 30. cxb5 {[%emt 0:00:13]} Qxb5 {[%emt 0:00:12]} 31. dxc5 {[%emt 0:00:
15]} dxc5 {[%emt 0:00:12]} 32. Rf5 {[%emt 0:00:13]} Qc6 {[%emt 0:00:21]} 33.
Rxc5 {[%emt 0:00:14]} Qxe4 {[%emt 0:00:13]} 34. Rc3 {[%emt 0:00:20]} Qe6 {
[%emt 0:00:18]} 35. Re3 {[%emt 0:00:11]} Qd5 {[%emt 0:00:21]} 36. Rg3 {[%emt 0:
00:12]} Ra2 {[%emt 0:00:14]} 37. Qf4 {[%emt 0:00:13]} Rd2 {[%emt 0:00:23]} 38.
Kh1 {[%emt 0:00:18]} Rd1 {[%emt 0:00:12]} 39. Rxd1 {[%emt 0:00:14]} Qxd1+ {
[%emt 0:00:11]} 40. Kh2 {[%emt 0:00:11]} Qd5 {[%emt 0:00:15]} 41. Re3 {[%emt 0:
00:12]} Qd7 {[%emt 0:00:14]} 42. Qe4 {[%emt 0:00:15]} Qd8 {[%emt 0:00:13]
VastMeaslyPlum won on time} 0-1

[Event "Fast Chess"]
[Site "ChessKid.com"]
[Date "2020.03.22"]
[Round "2"]
[White "Rigo, Clemens"]
[Black "Horvath, Alexander"]
[Result "0-1"]
[ECO "C42"]
[WhiteElo "780"]
[BlackElo "1417"]
[PlyCount "108"]
[EventDate "2020.??.??"]
[TimeControl "300+10"]
[WhiteClock "0:01:25"]
[BlackClock "0:00:36"]

1. e4 {[%emt 0:00:09]} e5 {[%emt 0:00:11]} 2. Nf3 {[%emt 0:00:13]} Nf6 {
[%emt 0:00:11]} 3. Nxe5 {[%emt 0:00:13]} Qe7 {[%emt 0:00:11]} 4. Nd3 {[%emt 0:
00:23]} Nxe4 {[%emt 0:00:12]} 5. Qe2 {[%emt 0:00:15]} d5 {[%emt 0:00:16]} 6. f3
{[%emt 0:00:13]} Ng5 {[%emt 0:00:24]} 7. Qxe7+ {[%emt 0:00:14]} Bxe7 {[%emt 0:
00:11]} 8. Nf4 {[%emt 0:00:13]} Be6 {[%emt 0:00:23]} 9. Nxe6 {[%emt 0:00:14]}
Nxe6 {[%emt 0:00:13]} 10. Bb5+ {[%emt 0:00:15]} Nc6 {[%emt 0:00:12]} 11. Bxc6+
{[%emt 0:00:12]} bxc6 {[%emt 0:00:11]} 12. O-O {[%emt 0:00:11]} O-O {[%emt 0:
00:12]} 13. Nc3 {[%emt 0:00:11]} Nd4 {[%emt 0:00:13]} 14. d3 {[%emt 0:00:53]}
Bc5 {[%emt 0:00:13]} 15. Be3 {[%emt 0:00:20]} Ne2+ {[%emt 0:00:36]} 16. Nxe2 {
[%emt 0:00:16]} Bxe3+ {[%emt 0:00:11]} 17. Kh1 {[%emt 0:00:13]} Rfe8 {[%emt 0:
00:13]} 18. h3 {[%emt 0:00:14]} Bf4 {[%emt 0:00:12]} 19. Nxf4 {[%emt 0:00:14]}
g5 {[%emt 0:00:16]} 20. Nh5 {[%emt 0:00:26]} Re2 {[%emt 0:00:15]} 21. Nf6+ {
[%emt 0:00:14]} Kg7 {[%emt 0:00:12]} 22. Ng4 {[%emt 0:00:18]} Rxc2 {[%emt 0:00:
13]} 23. b3 {[%emt 0:00:20]} Rc3 {[%emt 0:00:12]} 24. Ne5 {[%emt 0:00:15]} Re8
{[%emt 0:00:20]} 25. Ng4 {[%emt 0:00:23]} Rxd3 {[%emt 0:00:11]} 26. Nf2 {
[%emt 0:00:15]} Rde3 {[%emt 0:00:14]} 27. Rfe1 {[%emt 0:00:14]} Rxe1+ {[%emt 0:
00:11]} 28. Rxe1 {[%emt 0:00:18]} Rxe1+ {[%emt 0:00:11]} 29. Kh2 {[%emt 0:00:
12]} Re2 {[%emt 0:00:12]} 30. Kg1 {[%emt 0:00:15]} Rxa2 {[%emt 0:00:12]} 31.
Nd3 {[%emt 0:00:14]} Ra3 {[%emt 0:00:22]} 32. Nc5 {[%emt 0:00:12]} d4 {[%emt 0:
00:22]} 33. Kf2 {[%emt 0:00:14]} Kf6 {[%emt 0:00:14]} 34. Ke2 {[%emt 0:00:15]}
Ke5 {[%emt 0:00:12]} 35. Kd3 {[%emt 0:00:15]} Kd5 {[%emt 0:00:11]} 36. Ne4 {
[%emt 0:00:20]} Rxb3+ {[%emt 0:00:13]} 37. Kc2 {[%emt 0:00:12]} Rb6 {[%emt 0:
00:24]} 38. Nf6+ {[%emt 0:00:14]} Ke6 {[%emt 0:00:17]} 39. Nxh7 {[%emt 0:00:15]
} Kd6 {[%emt 0:00:20]} 40. Nxg5 {[%emt 0:00:10]} f6 {[%emt 0:00:11]} 41. Nf7+ {
[%emt 0:00:12]} Ke6 {[%emt 0:00:11]} 42. Nd8+ {[%emt 0:00:14]} Kd7 {[%emt 0:00:
11]} 43. Nf7 {[%emt 0:00:13]} a5 {[%emt 0:00:17]} 44. Nh6 {[%emt 0:00:14]} a4 {
[%emt 0:00:11]} 45. Nf5 {[%emt 0:00:13]} c5 {[%emt 0:00:16]} 46. Nxd4 {[%emt 0:
00:09]} cxd4 {[%emt 0:00:11]} 47. Kd3 {[%emt 0:00:14]} a3 {[%emt 0:00:11]} 48.
Kxd4 {[%emt 0:00:12]} a2 {[%emt 0:00:10]} 49. Ke4 {[%emt 0:00:11]} a1=Q {
[%emt 0:00:11]} 50. Kf4 {[%emt 0:00:11]} Rb4+ {[%emt 0:00:12]} 51. Kf5 {
[%emt 0:00:10]} Qe5+ {[%emt 0:00:11]} 52. Kg6 {[%emt 0:00:11]} Qg3+ {[%emt 0:
00:14]} 53. Kxf6 {[%emt 0:00:12]} Rf4+ {[%emt 0:00:11]} 54. Ke5 {[%emt 0:00:13]
} Qg5# {[%emt 0:00:11] KeenOrangeTeeth won by checkmate} 0-1

[Event "Fast Chess"]
[Site "ChessKid.com"]
[Date "2020.03.22"]
[Round "2"]
[White "Kober, Stefan"]
[Black "Georgiev, Daniel"]
[Result "0-1"]
[ECO "B90"]
[WhiteElo "1242"]
[BlackElo "1350"]
[PlyCount "70"]
[EventDate "2020.??.??"]
[TimeControl "300+10"]
[WhiteClock "0:01:40"]
[BlackClock "0:02:10"]

1. e4 {[%emt 0:00:09]} c5 {[%emt 0:00:12]} 2. Nf3 {[%emt 0:00:12]} d6 {[%emt 0:
00:11]} 3. d4 {[%emt 0:00:13]} cxd4 {[%emt 0:00:11]} 4. Nxd4 {[%emt 0:00:12]}
Nf6 {[%emt 0:00:11]} 5. Nc3 {[%emt 0:00:10]} a6 {[%emt 0:00:12]} 6. Bd3 {
[%emt 0:00:13]} e5 {[%emt 0:00:12]} 7. Nf3 {[%emt 0:00:12]} h6 {[%emt 0:00:11]}
8. O-O {[%emt 0:00:12]} Be6 {[%emt 0:00:11]} 9. Be3 {[%emt 0:00:15]} Be7 {
[%emt 0:00:12]} 10. Re1 {[%emt 0:00:21]} Nbd7 {[%emt 0:00:12]} 11. Ne2 {
[%emt 0:00:19]} O-O {[%emt 0:00:20]} 12. Ng3 {[%emt 0:00:12]} b5 {[%emt 0:00:
20]} 13. Qd2 {[%emt 0:00:12]} Nb6 {[%emt 0:00:26]} 14. Bxh6 {[%emt 0:00:13]}
gxh6 {[%emt 0:00:29]} 15. Qxh6 {[%emt 0:00:12]} Nh7 {[%emt 0:00:11]} 16. Nh5 {
[%emt 0:00:24]} Bf6 {[%emt 0:00:16]} 17. Nxf6+ {[%emt 0:00:14]} Qxf6 {[%emt 0:
00:13]} 18. Qxf6 {[%emt 0:00:19]} Nxf6 {[%emt 0:00:11]} 19. Ng5 {[%emt 0:00:14]
} Bc4 {[%emt 0:00:22]} 20. Re3 {[%emt 0:00:15]} Bxd3 {[%emt 0:00:14]} 21. cxd3
{[%emt 0:00:11]} Rac8 {[%emt 0:00:15]} 22. Rg3 {[%emt 0:00:18]} Kh8 {[%emt 0:
00:40]} 23. Rh3+ {[%emt 0:00:13]} Kg7 {[%emt 0:00:12]} 24. Rg3 {[%emt 0:00:17]}
Kh6 {[%emt 0:00:13]} 25. Nf3 {[%emt 0:00:25]} Rg8 {[%emt 0:00:32]} 26. Rh3+ {
[%emt 0:00:11]} Kg7 {[%emt 0:00:11]} 27. Ng5 {[%emt 0:00:27]} Rc2 {[%emt 0:00:
22]} 28. Rg3 {[%emt 0:00:14]} Kf8 {[%emt 0:00:12]} 29. Nh7+ {[%emt 0:00:13]}
Nxh7 {[%emt 0:00:13]} 30. Rxg8+ {[%emt 0:00:14]} Kxg8 {[%emt 0:00:11]} 31. b3 {
[%emt 0:00:13]} Rc3 {[%emt 0:00:14]} 32. Rd1 {[%emt 0:00:14]} Nf6 {[%emt 0:00:
14]} 33. f3 {[%emt 0:00:16]} Rc2 {[%emt 0:00:20]} 34. Ra1 {[%emt 0:00:20]} Nfd7
{[%emt 0:00:14]} 35. h3 {[%emt 0:00:12]} Nc5 {[%emt 0:00:12] PastSkilledLyric
won by resignation} 0-1

[Event "Fast Chess"]
[Site "ChessKid.com"]
[Date "2020.03.22"]
[Round "2"]
[White "Sasse, Gabriel"]
[Black "Georgiev, Maximilian"]
[Result "0-1"]
[ECO "C44"]
[WhiteElo "1136"]
[BlackElo "1142"]
[PlyCount "62"]
[EventDate "2020.??.??"]
[TimeControl "300+10"]
[WhiteClock "0:02:54"]
[BlackClock "0:01:25"]

1. e4 {[%emt 0:00:09]} e5 {[%emt 0:00:12]} 2. Nf3 {[%emt 0:00:11]} Nc6 {
[%emt 0:00:11]} 3. Be2 {[%emt 0:00:12]} Nf6 {[%emt 0:00:13]} 4. h3 {[%emt 0:00:
11]} Bc5 {[%emt 0:00:14]} 5. O-O {[%emt 0:00:17]} Nxe4 {[%emt 0:00:13]} 6. Bb5
{[%emt 0:00:17]} a6 {[%emt 0:00:13]} 7. Bxc6 {[%emt 0:00:12]} dxc6 {[%emt 0:00:
11]} 8. Qe2 {[%emt 0:00:34]} Qd5 {[%emt 0:00:17]} 9. d3 {[%emt 0:00:13]} Nf6 {
[%emt 0:00:13]} 10. Be3 {[%emt 0:00:13]} Bxe3 {[%emt 0:00:13]} 11. Qxe3 {
[%emt 0:00:12]} O-O {[%emt 0:00:19]} 12. Nc3 {[%emt 0:00:27]} Qa5 {[%emt 0:00:
19]} 13. Ne4 {[%emt 0:00:28]} Nxe4 {[%emt 0:00:15]} 14. Qxe4 {[%emt 0:00:12]}
Re8 {[%emt 0:00:17]} 15. Ng5 {[%emt 0:00:14]} h6 {[%emt 0:00:14]} 16. Qh7+ {
[%emt 0:00:13]} Kf8 {[%emt 0:00:13]} 17. Qh8+ {[%emt 0:00:13]} Ke7 {[%emt 0:00:
11]} 18. Qxg7 {[%emt 0:00:14]} Rf8 {[%emt 0:00:18]} 19. Qxh6 {[%emt 0:00:20]}
f6 {[%emt 0:00:14]} 20. Qg7+ {[%emt 0:00:24]} Ke8 {[%emt 0:00:13]} 21. Ne6 {
[%emt 0:00:13]} Rf7 {[%emt 0:00:15]} 22. Qg8+ {[%emt 0:00:14]} Ke7 {[%emt 0:00:
13]} 23. Nd8 {[%emt 0:00:20]} Rf8 {[%emt 0:00:13]} 24. Qg7+ {[%emt 0:00:18]}
Ke8 {[%emt 0:00:14]} 25. Ne6 {[%emt 0:00:20]} Rf7 {[%emt 0:00:15]} 26. Qh8+ {
[%emt 0:00:14]} Ke7 {[%emt 0:00:14]} 27. Nd8 {[%emt 0:00:16]} Rf8 {[%emt 0:00:
13]} 28. Qg7+ {[%emt 0:00:16]} Ke8 {[%emt 0:00:11]} 29. Rae1 {[%emt 0:00:17]}
Qd5 {[%emt 0:00:17]} 30. d4 {[%emt 0:00:26]} Rg8 {[%emt 0:00:13]} 31. Qxf6 {
[%emt 0:00:28]} Qxg2# {[%emt 0:00:12] TallSnazzyBall won by checkmate} 0-1